bitfinex-derivatives/quotes_BTCF0:USTF0_20210111
["timestamp","ask_amount","ask_price","bid_price","bid_amount"]
[1610376783872,0.8886607,33506.0,33425.0,0.2822]
[1610376784072,0.78204274,33502.0,33425.0,0.2822]
[1610376784271,0.88898693,33499.0,33425.0,0.2822]
[1610376784483,0.13632608,33435.0,33427.0,0.13632608]
[1610376785074,0.13632608,33435.0,33385.0,1.7934358]
[1610376785475,0.13632608,33435.0,33386.0,0.0885]
[1610376785676,0.13632608,33435.0,33386.0,0.06867]
[1610376785884,0.0897,33453.0,33386.0,0.06867]
[1610376786502,0.0897,33453.0,33452.0,1.0]
[1610376786677,1.0,33476.0,33452.0,1.0]
[1610376788478,0.3179,33479.0,33450.0,0.0915]
[1610376788677,0.13632608,33461.0,33450.0,0.22782608]
[1610376790179,0.13632608,33461.0,33450.0,0.0915]
[1610376790579,0.13632608,33451.0,33450.0,0.0915]
[1610376791280,0.13632608,33451.0,33449.0,1.0]
[1610376791481,0.08575,33461.0,33449.0,1.0]
[1610376792486,1.0,33456.0,33439.0,1.0]
[1610376792685,0.13632608,33440.0,33439.0,1.0]
[1610376793485,0.20583608,33440.0,33439.0,0.7815]
[1610376793686,0.20583608,33440.0,33439.0,0.621]
[1610376793886,6.06951,33440.0,33418.0,3.6641]
[1610376794086,1.5,33439.0,33418.0,3.6641]
[1610376794686,5.07202608,33419.0,33391.0,0.13632608]
[1610376795090,4.9357,33419.0,33383.0,0.2806]
[1610376796689,4.9357,33419.0,33413.0,0.13632608]
[1610376796889,4.9357,33419.0,33402.0,0.09713]
[1610376797289,4.4267,33403.0,33402.0,0.09713]
[1610376797489,4.50316,33403.0,33402.0,0.09713]
[1610376797890,4.50316,33403.0,33383.0,0.2806]
[1610376798089,5.50316,33403.0,33383.0,0.2806]
[1610376798689,0.13632608,33384.0,33383.0,0.2806]
[1610376798889,0.13632608,33384.0,33383.0,0.2504]
[1610376799089,0.13632608,33384.0,33383.0,0.0076]
[1610376799290,0.13632608,33384.0,33356.0,0.2848]
[1610376800693,0.13632608,33384.0,33383.0,0.13632608]
[1610376800892,0.13632608,33384.0,33383.0,0.22106608]
[1610376801091,0.13632608,33384.0,33383.0,0.08474]
[1610376801692,0.13632608,33384.0,33383.0,4e-05]
[1610376801895,0.13632608,33384.0,33366.0,0.10486]
[1610376802295,0.22194608,33384.0,33366.0,0.10486]
[1610376802494,0.22194608,33384.0,33366.0,6e-05]
[1610376802694,0.13632608,33367.0,33320.0,0.2797]
[1610376802895,0.21418608,33367.0,33320.0,0.2797]
[1610376803696,0.07786,33367.0,33320.0,0.2797]
[1610376804295,0.1135,33374.0,33320.0,0.2797]
[1610376804496,0.1135,33374.0,33320.0,0.36833]
[1610376804697,0.1135,33374.0,33331.0,0.13632608]
[1610376804895,0.1135,33374.0,33331.0,0.22781608]
[1610376805498,0.1135,33374.0,33331.0,0.09149]
[1610376807301,4.6085,33356.0,33331.0,0.09149]
[1610376807502,0.1135,33374.0,33331.0,0.09149]
[1610376808704,0.1135,33374.0,33335.0,0.13632608]
[1610376809304,0.0898,33383.0,33335.0,0.13632608]
[1610376809504,0.08562,33384.0,33335.0,0.13632608]
[1610376809703,0.52709038,33391.0,33335.0,0.13632608]
[1610376809904,0.52699762,33396.0,33335.0,0.13632608]
[1610376810306,0.52697603,33399.0,33335.0,0.13632608]
[1610376810710,0.13632608,33350.0,33331.0,0.09149]
[1610376810907,0.07765,33388.0,33320.0,0.36833]
[1610376812310,1.0,33378.0,33320.0,0.36833]
[1610376812509,1.09183,33378.0,33320.0,0.36833]
[1610376812710,0.13632608,33377.0,33355.0,0.13632608]
[1610376812911,1.0,33378.0,33355.0,0.13632608]
[1610376813112,1.0,33378.0,33355.0,0.23601608]
[1610376813912,1.0,33378.0,33355.0,0.09969]
[1610376814114,0.0279,33395.0,33355.0,0.09969]
[1610376815714,0.13632608,33356.0,33355.0,0.09969]
[1610376816716,1.0,33369.0,33355.0,0.09969]
[1610376816916,1.0,33369.0,33346.0,0.10529]
[1610376817713,0.13632608,33347.0,33346.0,0.10529]
[1610376818717,1.0,33356.0,33346.0,0.10529]
[1610376819617,0.13632608,33347.0,33346.0,0.10529]
[1610376821020,0.13632608,33347.0,33320.0,0.36833]
[1610376821416,0.17334,33357.0,33320.0,0.36833]
[1610376821817,0.13632608,33321.0,33320.0,0.36833]
[1610376822218,0.08414,33357.0,33320.0,0.36833]
[1610376822419,0.10051,33364.0,33320.0,0.36833]
[1610376823018,0.18951,33364.0,33320.0,0.36833]
[1610376825920,0.13632608,33321.0,33320.0,0.36833]
[1610376827623,4.9246,33344.0,33320.0,0.36833]
[1610376828025,0.13632608,33321.0,33320.0,0.36833]
[1610376828429,0.13632608,33321.0,33320.0,0.08863]
[1610376828629,0.13632608,33321.0,33298.0,0.13632608]
[1610376830029,0.13632608,33308.0,33303.0,0.13632608]
[1610376831432,0.13632608,33308.0,33287.0,4.438]
[1610376831631,0.08902,33334.0,33287.0,4.438]
[1610376831831,0.08902,33334.0,33287.0,4.54897]
[1610376832031,0.13632608,33290.0,33287.0,4.54897]
[1610376832832,1.0,33325.0,33287.0,4.54897]
[1610376833633,3.9724,33321.0,33287.0,0.11097]
[1610376833835,4.08513,33321.0,33287.0,0.11097]
[1610376834033,4.08513,33321.0,33292.0,0.13632608]
[1610376834233,5.08513,33321.0,33292.0,0.13632608]
[1610376834432,5.08513,33321.0,33287.0,0.11097]
[1610376836135,4.08513,33321.0,33287.0,0.11097]
[1610376836735,0.13632608,33288.0,33287.0,0.11097]
[1610376836937,0.13632608,33288.0,33274.0,0.13632608]
[1610376837335,0.06989,33306.0,33252.0,0.2921]
[1610376837535,0.06989,33306.0,33252.0,0.40163]
[1610376837936,0.11273,33321.0,33253.0,0.0892]
[1610376838336,0.08902,33334.0,33253.0,0.0892]
[1610376838535,0.1556,33343.0,33252.0,0.40163]
[1610376838736,0.1556,33343.0,33301.0,0.13632608]
[1610376838938,0.1556,33343.0,33301.0,0.21216608]
[1610376839136,0.1556,33343.0,33301.0,0.07584]
[1610376840136,1.0,33342.0,33301.0,0.07584]
[1610376840738,1.0,33342.0,33302.0,0.13632608]
[1610376841140,1.0,33342.0,33301.0,0.07584]
[1610376842641,0.13632608,33307.0,33304.0,0.13632608]
[1610376843043,0.13632608,33307.0,33301.0,0.07584]
[1610376843940,0.13632608,33307.0,33278.0,0.5767]
[1610376844742,0.2467,33343.0,33290.0,0.13632608]
[1610376844944,0.7204,33342.0,33292.0,4.1772]
[1610376846245,1.0,33310.0,33292.0,4.1772]
[1610376846845,0.13632608,33293.0,33292.0,4.1772]
[1610376847647,1.0,33310.0,33292.0,4.1772]
[1610376848249,0.08039,33325.0,33292.0,4.1772]
[1610376848849,0.13632608,33293.0,33292.0,4.1772]
[1610376850453,0.071,33317.0,33292.0,4.1772]
[1610376850860,0.071,33317.0,33290.0,0.08029]
[1610376851055,0.071,33317.0,33254.0,0.2937]
[1610376851056,0.13632608,33291.0,33261.0,0.13632608]
[1610376851451,0.1556,33314.0,33254.0,0.2937]
[1610376853054,0.1556,33314.0,33259.0,0.13632608]
[1610376853254,0.1556,33314.0,33259.0,0.24071608]
[1610376853655,0.7919286,33314.0,33259.0,0.24071608]
[1610376853955,0.63633724,33309.0,33259.0,0.24071608]
[1610376854154,1.0,33292.0,33261.0,4.3029]
[1610376855155,0.13632608,33262.0,33261.0,4.3029]
[1610376855956,0.13632608,33262.0,33259.0,0.10439]
[1610376857178,1.0,33293.0,33259.0,0.10439]
[1610376857358,3.5663,33284.0,33259.0,0.10439]
[1610376858358,3.5663,33284.0,33255.0,0.13632608]
[1610376859159,0.13632608,33264.0,33255.0,0.13632608]
[1610376860357,3.5663,33284.0,33254.0,0.2937]
[1610376861158,3.5663,33284.0,33259.0,0.13632608]
[1610376861357,3.5663,33284.0,33259.0,0.22548608]
[1610376861760,3.5663,33284.0,33259.0,0.08916]
[1610376863161,0.13632608,33260.0,33259.0,0.08916]
[1610376863761,4.3663,33260.0,33259.0,0.08916]
[1610376864164,5.3663,33260.0,33213.0,4.5307]
[1610376866165,4.3663,33260.0,33213.0,4.5307]
[1610376867165,0.13632608,33214.0,33213.0,4.5307]
[1610376869768,0.09693,33241.0,33213.0,4.5307]
[1610376869970,0.09693,33241.0,33213.0,4.62832]
[1610376871170,0.09693,33241.0,33240.0,0.13632608]
[1610376871369,0.08998,33251.0,33240.0,0.13632608]
[1610376871570,4.3663,33260.0,33240.0,0.23733608]
[1610376871970,4.3663,33260.0,33240.0,0.10101]
[1610376872970,0.63981874,33278.0,33240.0,0.10101]
[1610376873173,0.63975328,33280.0,33240.0,0.10101]
[1610376873370,0.63975328,33280.0,33271.0,0.13632608]
[1610376873571,0.64047545,33281.0,33271.0,0.13632608]
[1610376873770,0.64047545,33281.0,33269.0,0.09454]
[1610376873970,0.75071033,33284.0,33269.0,0.09454]
[1610376874370,0.93828696,33285.0,33269.0,0.09270175]
[1610376874571,0.01798807,33276.0,33269.0,0.09270175]
[1610376874974,0.01798982,33275.0,33269.0,0.09270175]
[1610376875381,0.13632608,33270.0,33240.0,0.10101]
[1610376875581,0.55329342,33271.0,33240.0,0.10101]
[1610376875778,0.09270175,33266.0,33240.0,0.10101]
[1610376875976,0.01801425,33265.0,33240.0,0.10101]
[1610376876575,0.01801425,33265.0,33221.0,0.2952]
[1610376876778,0.55397974,33262.0,33221.0,0.2952]
[1610376877184,0.55400898,33261.0,33221.0,0.2952]
[1610376877378,0.55400898,33261.0,33236.0,0.13632608]
[1610376877587,0.01804521,33258.0,33236.0,0.13632608]
[1610376877781,0.01804521,33258.0,33236.0,0.0927]
[1610376877981,0.01804571,33257.0,33236.0,0.0927]
[1610376878393,0.0180468,33256.0,33236.0,0.0927]
[1610376878783,0.01805439,33253.0,33236.0,0.0927]
[1610376879180,0.55451703,33251.0,33236.0,0.0927]
[1610376879377,0.13632608,33237.0,33236.0,0.0927]
[1610376879979,0.89428953,33258.0,33236.0,0.0927]
[1610376879980,0.01806134,33248.0,33236.0,0.0927]
[1610376880381,0.0180755,33246.0,33236.0,0.0927]
[1610376880980,0.01806959,33244.0,33220.0,0.09091]
[1610376881182,0.55501239,33243.0,33220.0,0.09091]
[1610376881380,0.13632608,33221.0,33212.0,0.13632608]
[1610376882683,0.13632608,33221.0,33172.0,0.2762]
[1610376883283,0.01807512,33239.0,33211.0,0.13632608]
[1610376883482,0.55513582,33240.0,33211.0,0.23237608]
[1610376883883,0.55503544,33241.0,33211.0,0.23237608]
[1610376884484,0.01807175,33241.0,33211.0,0.23237608]
[1610376884885,0.55496489,33242.0,33211.0,0.09605]
[1610376885285,0.13632608,33212.0,33211.0,0.09605]
[1610376888591,0.13632608,33212.0,33210.0,0.13632608]
[1610376888794,0.53679846,33236.0,33210.0,0.13632608]
[1610376888795,0.01806274,33236.0,33210.0,0.13632608]
[1610376888993,0.01806274,33236.0,33210.0,0.21649608]
[1610376889193,0.01806043,33238.0,33210.0,0.21649608]
[1610376889393,0.01806043,33238.0,33234.0,0.13632608]
[1610376889593,0.5546619,33245.0,33234.0,0.13632608]
[1610376889993,0.55460965,33247.0,33234.0,0.13632608]
[1610376890393,0.01805964,33250.0,33228.0,0.10745]
[1610376890794,0.01806208,33252.0,33228.0,0.10745]
[1610376891192,0.17366121,33254.0,33228.0,0.10745]
[1610376891393,0.17366121,33254.0,33249.0,0.13632608]
[1610376891593,0.1556,33254.0,33249.0,0.13632608]
[1610376891793,0.55471743,33255.0,33249.0,0.13632608]
[1610376891993,0.01806713,33255.0,33249.0,0.13632608]
[1610376892794,0.5549181,33256.0,33249.0,0.13632608]
[1610376893195,0.53680357,33262.0,33249.0,0.13632608]
[1610376893399,0.53680357,33262.0,33261.0,0.13632608]
[1610376893595,0.09863,33269.0,33261.0,0.13632608]
[1610376893795,0.53693589,33270.0,33261.0,0.13632608]
[1610376893997,0.53693589,33270.0,33261.0,0.21138608]
[1610376894196,0.53690267,33273.0,33261.0,0.07506]
[1610376894596,0.78737376,33278.0,33261.0,0.07506]
[1610376894597,0.53724556,33274.0,33261.0,0.07506]
[1610376894996,0.53708075,33264.0,33261.0,0.07506]
[1610376895397,0.13632608,33265.0,33261.0,0.07322161]
[1610376896198,0.13632608,33265.0,33253.0,0.081]
[1610376896399,4.7239,33264.0,33246.0,0.10155]
[1610376896999,0.53753338,33260.0,33238.0,0.09096]
[1610376897199,0.61363338,33260.0,33227.0,4.8873]
[1610376897401,0.53771729,33252.0,33227.0,4.8873]
[1610376897601,0.60813729,33252.0,33227.0,4.8873]
[1610376897802,0.13632608,33228.0,33227.0,4.8873]
[1610376898000,0.10229,33245.0,33227.0,4.8873]
[1610376899000,0.53801006,33249.0,33227.0,4.8873]
[1610376899802,0.13632608,33239.0,33232.0,0.13632608]
[1610376901802,0.13632608,33239.0,33225.0,0.08752]
[1610376901803,0.00376904,33246.0,33236.0,0.13632608]
[1610376902003,0.00376904,33246.0,33236.0,0.20777608]
[1610376902402,0.01293871,33246.0,33236.0,0.20777608]
[1610376902803,0.00377552,33249.0,33236.0,0.20777608]
[1610376903203,0.5395392,33251.0,33236.0,0.20777608]
[1610376903204,0.01294389,33251.0,33236.0,0.20777608]
[1610376903707,0.0037753,33251.0,33250.0,0.13632608]
[1610376903903,0.0037753,33251.0,33248.0,0.10959]
[1610376904105,0.01295758,33252.0,33248.0,0.10959]
[1610376904505,1.18948825,33249.0,33248.0,0.10959]
[1610376904906,1.18948825,33249.0,33236.0,0.07145]
[1610376904907,1.98250709,33249.0,33236.0,0.07145]
[1610376905507,0.02741383,33241.0,33236.0,0.07145]
[1610376905906,0.02741383,33241.0,33240.0,0.13632608]
[1610376906107,0.64945535,33244.0,33240.0,0.13632608]
[1610376906108,0.00919732,33243.0,33240.0,0.13632608]
[1610376906508,0.02743054,33242.0,33240.0,0.13632608]
[1610376906709,0.02743146,33244.0,33240.0,0.13632608]
[1610376907208,0.13632608,33246.0,33240.0,0.13632608]
[1610376907209,0.14552945,33246.0,33240.0,0.13632608]
[1610376907611,0.16377138,33246.0,33240.0,0.13632608]
[1610376907811,0.0274453,33246.0,33245.0,0.13632608]
[1610376908009,0.0274453,33246.0,33245.0,0.21199608]
[1610376908411,0.54202022,33247.0,33245.0,0.21199608]
[1610376908412,0.00920991,33247.0,33245.0,0.21199608]
[1610376908612,0.79476105,33253.0,33245.0,0.21199608]
[1610376908613,0.01825207,33252.0,33245.0,0.21199608]
[1610376909012,0.6505716,33264.0,33245.0,0.21199608]
[1610376909413,0.65052236,33267.0,33245.0,0.21199608]
[1610376909611,0.09822236,33267.0,33245.0,0.21199608]
[1610376909815,1.01182331,33278.0,33245.0,0.21199608]
[1610376909816,0.79547936,33277.0,33266.0,0.13632608]
[1610376910014,0.79547936,33277.0,33267.0,0.0896]
[1610376910214,0.90376142,33289.0,33268.0,0.0892]
[1610376910614,0.9032375,33297.0,33266.0,0.0692]
[1610376911014,0.61351636,33298.0,33266.0,0.0692]
[1610376911417,0.4595313,33306.0,33266.0,0.0692]
[1610376911820,1.011714,33312.0,33266.0,0.0692]
[1610376911821,0.90269667,33312.0,33266.0,0.0692]
[1610376912016,0.83209667,33312.0,33311.0,0.13632608]
[1610376912217,0.1556,33318.0,33311.0,0.22838608]
[1610376912418,0.16520427,33320.0,33311.0,0.09206]
[1610376912622,1.00951561,33333.0,33311.0,0.09206]
[1610376913019,1.00929469,33341.0,33311.0,0.09206]
[1610376913220,1.00929469,33341.0,33312.0,0.09]
[1610376913420,1.00717272,33347.0,33311.0,0.09206]
[1610376913619,0.16507988,33348.0,33311.0,0.09206]
[1610376914021,0.1556,33354.0,33311.0,0.09206]
[1610376914022,1.00712137,33352.0,33311.0,0.09206]
[1610376914421,1.00712137,33352.0,33312.0,0.0892]
[1610376914621,0.1556,33354.0,33311.0,0.09206]
[1610376915122,0.1556,33354.0,33353.0,0.13632608]
[1610376915322,1.25576185,33372.0,33353.0,0.22325608]
[1610376915722,1.25278623,33377.0,33353.0,0.08693]
[1610376915923,1.25280357,33376.0,33353.0,0.08693]
[1610376916322,0.09576,33382.0,33353.0,0.08693]
[1610376916323,1.25002639,33381.0,33353.0,0.08693]
[1610376916724,1.34556242,33382.0,33353.0,0.08693]
[1610376917125,0.13632608,33360.0,33359.0,0.13632608]
[1610376917725,0.13632608,33360.0,33353.0,0.08693]
[1610376918525,0.07381,33375.0,33353.0,0.08693]
[1610376918925,0.07381,33375.0,33341.0,0.10163]
[1610376919727,0.13632608,33342.0,33341.0,0.10163]
[1610376919926,0.13632608,33342.0,33311.0,0.22838608]
[1610376920325,0.1053,33348.0,33311.0,0.09206]
[1610376920626,0.1053,33348.0,33311.0,0.07561]
[1610376921727,0.1053,33348.0,33347.0,0.13632608]
[1610376921927,0.1053,33348.0,33326.0,0.07164]
[1610376923829,0.1053,33348.0,33347.0,0.13632608]
[1610376924629,0.1053,33348.0,33326.0,0.07164]
[1610376925029,0.08376,33350.0,33326.0,0.07164]
[1610376925729,0.08376,33350.0,33349.0,0.13632608]
[1610376926329,0.13632608,33359.0,33349.0,0.13632608]
[1610376926528,0.287,33367.0,33340.0,0.11026]
[1610376927732,0.287,33367.0,33352.0,0.13632608]
[1610376928134,0.07381,33375.0,33352.0,0.13449157]
[1610376928534,1.38972349,33391.0,33352.0,0.13449157]
[1610376928734,0.1556,33391.0,33352.0,0.13449157]
[1610376929135,0.1556,33391.0,33340.0,0.11026]
[1610376929334,4.041,33388.0,33340.0,0.11026]
[1610376929538,0.23533,33391.0,33340.0,0.11026]
[1610376929734,0.23533,33391.0,33361.0,0.13632608]
[1610376930736,0.23533,33391.0,33351.0,0.09602]
[1610376931736,0.13632608,33377.0,33351.0,0.09602]
[1610376932138,0.21783608,33377.0,33351.0,0.09602]
[1610376932536,0.08151,33377.0,33351.0,0.09602]
[1610376933139,0.0689,33384.0,33351.0,0.09602]
[1610376933738,0.0689,33384.0,33383.0,0.13632608]
[1610376934340,0.03,33388.0,33383.0,0.21527608]
[1610376935840,0.03,33388.0,33387.0,0.13632608]
[1610376936042,0.03,33388.0,33365.0,0.07327]
[1610376936043,0.03,33388.0,33374.0,0.10429]
[1610376937940,0.03,33388.0,33387.0,0.13632608]
[1610376938340,0.03,33388.0,33374.0,0.10429]
[1610376939841,0.13632608,33383.0,33379.0,0.13632608]
[1610376942445,0.03,33388.0,33365.0,0.07327]
[1610376942647,0.03,33388.0,33352.0,0.2919]
[1610376942846,0.03,33388.0,33351.0,0.09602]
[1610376943046,0.03,33388.0,33285.0,1.5]
[1610376943248,0.03,33388.0,33314.0,0.2775]
[1610376943448,0.03,33388.0,33278.0,1.92592474]
[1610376943648,0.2807,33387.0,33279.0,0.5635]
[1610376944247,0.5698,33387.0,33279.0,0.5635]
[1610376944847,0.5698,33387.0,33279.0,0.271]
[1610376945048,0.5698,33387.0,33280.0,0.277]
[1610376945250,0.5698,33387.0,33280.0,0.3619]
[1610376945649,0.5698,33387.0,33280.0,0.0849]
[1610376945848,2.0698,33387.0,33313.0,0.13632608]
[1610376946049,3.29321905,33387.0,33313.0,0.13632608]
[1610376946248,1.0,33328.0,33305.0,0.11244]
[1610376946449,1.07373,33328.0,33305.0,0.11244]
[1610376947653,1.07373,33328.0,33280.0,0.0849]
[1610376947855,1.07373,33328.0,33300.0,0.13632608]
[1610376948252,4.2538,33323.0,33300.0,0.13632608]
[1610376948953,4.2538,33323.0,33280.0,4.1225]
[1610376950057,4.2538,33323.0,33281.0,1.5]
[1610376950458,4.2538,33323.0,33282.0,0.09]
[1610376950656,4.2538,33323.0,33322.0,0.13632608]
[1610376950855,0.1556,33387.0,33322.0,0.31376608]
[1610376951255,0.2972,33386.0,33322.0,0.31376608]
[1610376951658,0.5967,33386.0,33322.0,0.31376608]
[1610376951857,0.5967,33386.0,33322.0,0.17744]
[1610376952656,0.5967,33386.0,33384.0,0.13632608]
[1610376953067,0.5967,33386.0,33384.0,0.13449294]
[1610376953858,0.5967,33386.0,33375.0,0.11315]
[1610376954561,0.5967,33386.0,33384.0,0.13632608]
[1610376956164,0.5967,33386.0,33375.0,0.11315]
[1610376956365,0.5967,33386.0,33374.0,4.725]
[1610376956765,0.13632608,33375.0,33374.0,4.725]
[1610376956966,0.23551608,33375.0,33374.0,4.725]
[1610376957366,0.09919,33375.0,33374.0,4.725]
[1610376957568,0.09919,33375.0,33358.0,4.1625]
[1610376959769,0.07386,33383.0,33358.0,4.1625]
[1610376959967,0.07386,33383.0,33358.0,4.24448]
[1610376960770,0.13632608,33379.0,33376.0,0.13632608]
[1610376961370,0.13632608,33379.0,33358.0,4.24448]
[1610376962772,0.13632608,33379.0,33378.0,0.13632608]
[1610376963674,0.13632608,33379.0,33358.0,4.24448]
[1610376964674,1.0,33381.0,33361.0,0.13632608]
[1610376965275,1.0,33381.0,33358.0,4.1625]
[1610376966278,1.0,33363.0,33358.0,4.1625]
[1610376966478,1.09627,33363.0,33358.0,4.1625]
[1610376966879,0.13632608,33359.0,33343.0,0.13632608]
[1610376967279,1.09627,33363.0,33343.0,0.13632608]
[1610376968282,0.09627,33363.0,33343.0,0.13632608]
[1610376968887,0.13632608,33348.0,33347.0,0.13632608]
[1610376969487,0.13632608,33348.0,33338.0,0.06896]
[1610376969688,0.13632608,33348.0,33287.0,2.09507641]
[1610376970090,0.2809,33347.0,33276.0,2.10886337]
[1610376970488,0.2809,33347.0,33273.0,2.11311778]
[1610376970887,0.2809,33347.0,33276.0,2.11700021]
[1610376971090,0.2809,33347.0,33335.0,0.13632608]
[1610376971888,0.2809,33347.0,33327.0,0.09083]
[1610376973089,0.13632608,33329.0,33327.0,0.22715608]
[1610376973488,0.2809,33347.0,33327.0,0.22715608]
[1610376975090,0.2809,33347.0,33346.0,0.13632608]
[1610376975291,0.2809,33347.0,33327.0,0.09083]
[1610376976491,0.2809,33347.0,33279.0,2.11834834]
[1610376976691,0.2809,33347.0,33277.0,3.6222347]
[1610376976891,0.2809,33347.0,33279.0,2.1227591]
[1610376977290,0.2809,33347.0,33289.0,4.8579]
[1610376977490,0.2809,33347.0,33290.0,1.5893]
[1610376977892,0.2809,33347.0,33346.0,0.13632608]
[1610376978092,0.2809,33347.0,33346.0,0.24277608]
[1610376979092,0.2809,33347.0,33346.0,0.10645]
[1610376979792,0.2809,33347.0,33346.0,0.24277608]
[1610376981197,0.2764,33347.0,33346.0,0.24277608]
[1610376981598,0.2764,33347.0,33346.0,0.10645]
[1610376982198,0.2764,33347.0,33346.0,0.24277608]
[1610376982400,0.2764,33347.0,33346.0,0.10645]
[1610376982798,0.2809,33384.0,33346.0,0.10645]
[1610376983199,0.2809,33384.0,33315.0,0.0892]
[1610376983399,0.2809,33384.0,33310.0,2.12434389]
[1610376984100,0.2809,33384.0,33308.0,2.12641934]
[1610376984101,1.26111352,33383.0,33308.0,2.12641934]
[1610376984299,1.26111352,33383.0,33359.0,0.13632608]
[1610376984501,0.2809,33384.0,33359.0,0.08861]
[1610376984502,1.2613406,33382.0,33359.0,0.08861]
[1610376984700,1.2612322,33381.0,33359.0,0.08861]
[1610376985102,1.26131876,33383.0,33359.0,0.08861]
[1610376985501,1.54215442,33384.0,33359.0,0.08861]
[1610376985902,4.1906,33379.0,33359.0,0.08861]
[1610376986302,4.1906,33379.0,33378.0,0.13632608]
[1610376986704,4.1906,33379.0,33378.0,0.13449393]
[1610376987505,4.1906,33379.0,33367.0,0.09176]
[1610376988306,4.1906,33379.0,33378.0,0.13632608]
[1610376989907,4.1906,33379.0,33367.0,0.09176]
[1610376990708,4.29121,33379.0,33337.0,4.8085]
[1610376991109,1.26139994,33376.0,33337.0,4.8085]
[1610376991510,1.26150276,33374.0,33337.0,4.8085]
[1610376991909,1.26150608,33372.0,33337.0,4.8085]
[1610376992310,0.13632608,33359.0,33337.0,4.8085]
[1610376992712,1.26149256,33374.0,33337.0,4.8085]
[1610376992911,1.26144345,33373.0,33337.0,4.8085]
[1610376993513,1.26143185,33375.0,33337.0,4.8085]
[1610376993710,1.26143185,33375.0,33337.0,4.89187]
[1610376993912,1.2614478,33376.0,33337.0,4.89187]
[1610376994316,0.13632608,33374.0,33371.0,0.13632608]
[1610376994909,4.29121,33379.0,33337.0,4.89187]
[1610376995310,0.10061,33379.0,33337.0,0.08337]
[1610376995709,1.26142656,33382.0,33337.0,0.08337]
[1610376995911,5.41390387,33384.0,33337.0,0.08337]
[1610376996311,4.1524,33384.0,33383.0,0.13632608]
[1610376997110,4.1524,33384.0,33383.0,0.13449465]
[1610377000512,4.1524,33384.0,33378.0,0.08603]
[1610377002315,4.28872608,33384.0,33383.0,0.13632608]
[1610377003517,4.28872608,33384.0,33378.0,0.08603]
[1610377004118,4.1524,33384.0,33378.0,0.08603]
[1610377004522,0.13632608,33379.0,33378.0,0.08603]
[1610377005118,0.13632608,33379.0,33371.0,0.07842]
[1610377005319,0.13632608,33379.0,33337.0,0.08337]
[1610377005519,0.13632608,33379.0,33317.0,0.0888]
[1610377006520,0.13632608,33379.0,33314.0,2.12974941]
[1610377006721,0.2809,33384.0,33314.0,2.12974941]
[1610377006923,0.2809,33384.0,33314.0,0.07485]
[1610377007321,0.2809,33384.0,33375.0,0.13632608]
[1610377007722,1.5436942,33384.0,33372.0,0.06924]
[1610377008120,0.2809,33384.0,33372.0,0.06740856]
[1610377008320,1.0,33376.0,33372.0,0.06740856]
[1610377009220,0.13632608,33373.0,33372.0,0.06740856]
[1610377011824,0.13632608,33373.0,33361.0,0.13632608]
[1610377012023,0.13632608,33373.0,33314.0,0.07485]
[1610377012225,0.13632608,33373.0,33313.0,2.13936272]
[1610377012523,0.13632608,33373.0,33311.0,2.14186296]
[1610377012924,1.26769351,33372.0,33308.0,2.14410029]
[1610377013225,1.26769351,33372.0,33358.0,0.13632608]
[1610377013624,1.26772931,33373.0,33358.0,0.13632608]
[1610377014023,2.1731209,33386.0,33358.0,0.13632608]
[1610377014024,1.26770782,33374.0,33358.0,0.13632608]
[1610377014223,1.0,33370.0,33358.0,0.13632608]
[1610377014623,1.0,33370.0,33356.0,0.06917]
[1610377015224,1.0,33370.0,33366.0,0.13632608]
[1610377015625,1.0,33370.0,33356.0,0.06917]
[1610377017626,2.26819127,33370.0,33356.0,0.06917]
[1610377018628,2.26819127,33370.0,33346.0,4.295]
[1610377019028,1.26822434,33368.0,33346.0,4.295]
[1610377019429,1.26832122,33366.0,33346.0,4.295]
[1610377020230,1.26841012,33364.0,33346.0,4.295]
[1610377020430,1.26834874,33365.0,33346.0,4.295]
[1610377020830,1.26834874,33365.0,33346.0,4.3641]
[1610377021429,1.59452613,33368.0,33346.0,4.3641]
[1610377021430,1.26826007,33364.0,33346.0,4.3641]
[1610377021832,1.26824971,33366.0,33346.0,4.3641]
[1610377022031,0.13632608,33347.0,33346.0,4.3641]
[1610377023333,0.13632608,33347.0,33346.0,0.0691]
[1610377026034,0.13632608,33347.0,33343.0,0.13632608]
[1610377026434,0.13632608,33347.0,33296.0,2.15414236]
[1610377026835,0.13632608,33347.0,33295.0,2.15383563]
[1610377027235,1.2683583,33356.0,33293.0,2.15169418]
[1610377027538,1.26837722,33353.0,33290.0,2.15510123]
[1610377027735,1.37462722,33353.0,33290.0,2.15510123]
[1610377027935,1.37462722,33353.0,33328.0,0.13632608]
[1610377028136,1.26849126,33352.0,33328.0,0.24572608]
[1610377028535,1.26825006,33350.0,33328.0,0.1094]
[1610377028737,1.26838668,33347.0,33328.0,0.1094]
[1610377029937,1.26812749,33345.0,33328.0,0.1094]
[1610377030536,0.13632608,33329.0,33328.0,0.1094]
[1610377031738,1.26819311,33345.0,33328.0,0.1094]
[1610377031937,1.26818828,33343.0,33328.0,0.1094]
[1610377032539,0.13632608,33329.0,33328.0,0.1094]
[1610377033139,0.13632608,33329.0,33328.0,0.1075664]
[1610377033340,0.13632608,33329.0,33302.0,3.4367]
[1610377033739,1.5,33328.0,33302.0,3.4367]
[1610377034341,1.0,33316.0,33302.0,3.4367]
[1610377034542,0.13632608,33303.0,33302.0,3.4367]
[1610377036146,0.13632608,33303.0,33289.0,0.1033]
[1610377036347,0.13632608,33303.0,33250.0,2.15534592]
[1610377036546,1.0,33310.0,33250.0,2.15534592]
[1610377036748,1.0,33310.0,33250.0,0.0816]
[1610377036948,0.3,33309.0,33250.0,0.0816]
[1610377037151,0.13632608,33291.0,33290.0,0.13632608]
[1610377037952,3.9467,33303.0,33290.0,0.13632608]
[1610377038150,3.9467,33303.0,33290.0,0.21857608]
[1610377038551,3.9467,33303.0,33290.0,0.08225]
[1610377039152,0.13632608,33291.0,33290.0,0.08225]
[1610377039951,3.9467,33303.0,33290.0,0.08225]
[1610377041151,0.13632608,33291.0,33290.0,0.08225]